Workbook

Sheet NUORET
A1: Itä-Suomen laituripilkkicup 2022
B3: Sarja Nuoret | C3: Seura | D3: Osakilpailu I tulos g | E3: Osakilpailu I pisteet | F3: Osakilpailu II tulos g | G3: Osakilpailu II pisteet | H3: Osakilpailu III tulos g | I3: Osakilpailu III pisteet | J3: Osakilpailu IV tulos g | K3: Osakilpailu IV pisteet | L3: Osakilpailu V tulos g | M3: Osakilpailu V pisteet | N3: Osakilpailut Yhteistulos | O3: Osakilpailut yhteispisteet (3 parasta)
A4: 1
A5: 2
A6: 3
A7: 4

Sheet NAISET
A1: Itä-Suomen laituripilkkicup 2022
D2: Nilsiä 4.6.2022 | F2: Lieksa 18.6.2022 | H2: Joensuu 19.2.2022 | J2: Nurmes 6.8.2022 | L2: Kuopio 25.9.2022
B3: Sarja Naiset | C3: Seura | D3: Osakilpailu I tulos g | E3: Osakilpailu I pisteet | F3: Osakilpailu II tulos g | G3: Osakilpailu II pisteet | H3: Osakilpailu III tulos g | I3: Osakilpailu III pisteet | J3: Osakilpailu IV tulos g | K3: Osakilpailu IV pisteet | L3: Osakilpailu V tulos g | M3: Osakilpailu V pisteet | N3: Osakilpailut Yhteistulos | O3: Osakilpailut ( 3 parasta kisaa)
A4: 1. | B4: Seija Kokkarinen | C4: PUPI | D4: 1311 | E4: 8 | F4: 2423 | G4: 15 | H4: 445 | I4: 11 | J4: 2255 | K4: 15 | L4: 1177 | M4: 14 | N4: =SUM(D4+F4+H4+J4+L4) -> 7611 | O4: =LARGE((E4,G4,I4,K4,M4),1)+LARGE((E4,G4,I4,K4,M4),2)+LARGE((E4,G4,I4,K4,M4),3) -> 44
A5: 2. | B5: Maria Kokko | C5: PUPI | D5: 1314 | E5: 9 | F5: 789 | G5: 12 | H5: 986 | I5: 15 | J5: 2214 | K5: 14 | L5: 1487 | M5: 15 | N5: =SUM(D5+F5+H5+J5+L5) -> 6790 | O5: =LARGE((E5,G5,I5,K5,M5),1)+LARGE((E5,G5,I5,K5,M5),2)+LARGE((E5,G5,I5,K5,M5),3) -> 44
A6: 3. | B6: Arja Puurunen | C6: PUPI | D6: 1623 | E6: 13 | F6: 576 | G6: 10 | H6: 551 | I6: 13 | J6: 1546 | K6: 11 | L6: 915 | M6: 13 | N6: 5211 | O6: =LARGE((E6,G6,I6,K6,M6),1)+LARGE((E6,G6,I6,K6,M6),2)+LARGE((E6,G6,I6,K6,M6),3) -> 39
A7: 4. | B7: Ritva Viertola | C7: LKM | D7: 991 | E7: 4 | F7: 2403 | G7: 14 | H7: 438 | I7: 10 | J7: 1531 | K7: 10 | L7: 465 | M7: 8 | N7: 5828 | O7: =LARGE((E7,G7,I7,K7,M7),1)+LARGE((E7,G7,I7,K7,M7),2)+LARGE((E7,G7,I7,K7,M7),3) -> 34
A8: 5. | B8: Seija Kukkonen | C8: NKM | D8: 0 | E8: 0 | F8: 1474 | G8: 13 | H8: 0 | I8: 0 | J8: 1559 | K8: 12 | L8: 508 | M8: 9 | N8: 3541 | O8: =LARGE((E8,G8,I8,K8,M8),1)+LARGE((E8,G8,I8,K8,M8),2)+LARGE((E8,G8,I8,K8,M8),3) -> 34
A9: 6. | B9: Päivi Savinainen | C9: PUPI | D9: 1689 | E9: 14 | F9: 0 | G9: 0 | H9: 0 | I9: 0 | J9: 1504 | K9: 9 | L9: 379 | M9: 6 | N9: 3572 | O9: =LARGE((E9,G9,I9,K9,M9),1)+LARGE((E9,G9,I9,K9,M9),2)+LARGE((E9,G9,I9,K9,M9),3) -> 29
A10: 7. | B10: Kaisa Huovinen | C10: PKUK | D10: 1407 | E10: 11 | F10: 155 | G10: 6 | H10: 504 | I10: 12 | J10: 0 | K10: 0 | N10: 2066 | O10: =LARGE((E10,G10,I10,K10,M10),1)+LARGE((E10,G10,I10,K10,M10),2)+LARGE((E10,G10,I10,K10,M10),3) -> 29
A11: 8. | B11: Riitta Saastamoinen | C11: NIKA | D11: 2518 | E11: 15 | F11: 0 | G11: 0 | H11: 0 | I11: 0 | J11: 0 | K11: 0 | L11: 734 | M11: 11 | N11: 3252 | O11: =LARGE((E11,G11,I11,K11,M11),1)+LARGE((E11,G11,I11,K11,M11),2)+LARGE((E11,G11,I11,K11,M11),3) -> 26
A12: 9. | B12: Terttu Kuokkanen | C12: NKM | D12: 1486 | E12: 12 | F12: 0 | G12: 0 | H12: 0 | I12: 0 | J12: 1842 | K12: 13 | N12: 3328 | O12: =LARGE((E12,G12,I12,K12,M12),1)+LARGE((E12,G12,I12,K12,M12),2)+LARGE((E12,G12,I12,K12,M12),3) -> 25
A13: 10. | B13: Maritta Nikkonen | C13: LUK | D13: 0 | E13: 0 | F13: 444 | G13: 7 | H13: 672 | I13: 14 | J13: 0 | K13: 0 | N13: 1116 | O13: =LARGE((E13,G13,I13,K13,M13),1)+LARGE((E13,G13,I13,K13,M13),2)+LARGE((E13,G13,I13,K13,M13),3) -> 21
A14: 11. | B14: Pirkko Asikainen | C14: KIKA | D14: 1034 | E14: 5 | F14: 470 | G14: 8 | H14: 168 | I14: 7 | J14: 0 | K14: 0 | N14: 1672 | O14: =LARGE((E14,G14,I14,K14,M14),1)+LARGE((E14,G14,I14,K14,M14),2)+LARGE((E14,G14,I14,K14,M14),3) -> 20
A15: 12. | B15: Pirkko Lappalainen | C15: NKM | D15: 1323 | E15: 10 | F15: 0 | G15: 0 | H15: 0 | I15: 0 | J15: 1011 | K15: 8 | N15: 2334 | O15: =LARGE((E15,G15,I15,K15,M15),1)+LARGE((E15,G15,I15,K15,M15),2)+LARGE((E15,G15,I15,K15,M15),3) -> 18
A16: 13. | B16: Anneli Muikku | C16: PN | D16: 0 | E16: 0 | F16: 550 | G16: 9 | H16: 360 | I16: 9 | J16: 0 | K16: 0 | N16: 910 | O16: =LARGE((E16,G16,I16,K16,M16),1)+LARGE((E16,G16,I16,K16,M16),2)+LARGE((E16,G16,I16,K16,M16),3) -> 18
A17: 14. | B17: Ritva Åman | C17: LKM | D17: 0 | E17: 0 | F17: 203 | G17: 6 | H17: 108 | I17: 6 | J17: 325 | K17: 5 | N17: 636 | O17: =LARGE((E17,G17,I17,K17,M17),1)+LARGE((E17,G17,I17,K17,M17),2)+LARGE((E17,G17,I17,K17,M17),3) -> 17
A18: 15. | B18: Kaarina Kontkanen | C18: LUK | D18: 1233 | E18: 7 | F18: 0 | G18: 0 | H18: 267 | I18: 8 | J18: 0 | K18: 0 | N18: 1500 | O18: =LARGE((E18,G18,I18,K18,M18),1)+LARGE((E18,G18,I18,K18,M18),2)+LARGE((E18,G18,I18,K18,M18),3) -> 15
A19: 16. | B19: Elma Ikonen | C19: PN | D19: 0 | E19: 0 | F19: 778 | G19: 11 | H19: 0 | I19: 0 | J19: 0 | K19: 0 | N19: 778 | O19: =LARGE((E19,G19,I19,K19,M19),1)+LARGE((E19,G19,I19,K19,M19),2)+LARGE((E19,G19,I19,K19,M19),3) -> 11
A20: 17. | B20: Pirkko Arokorpi | C20: PUPI | D20: 711 | E20: 1 | F20: 0 | G20: 0 | H20: 0 | I20: 0 | J20: 0 | K20: 0 | L20: 709 | M20: 10 | N20: 1420 | O20: =LARGE((E20,G20,I20,K20,M20),1)+LARGE((E20,G20,I20,K20,M20),2)+LARGE((E20,G20,I20,K20,M20),3) -> 11
A21: 18. | B21: Anu Nyyssönen | C21: NIKA | D21: 942 | E21: 3 | F21: 0 | G21: 0 | H21: 0 | I21: 0 | J21: 0 | K21: 0 | L21: 455 | M21: 7 | N21: 1397 | O21: =LARGE((E21,G21,I21,K21,M21),1)+LARGE((E21,G21,I21,K21,M21),2)+LARGE((E21,G21,I21,K21,M21),3) -> 10
A22: 19. | B22: Liisa Kuvaja | C22: PKUK | D22: 0 | E22: 0 | F22: 0 | G22: 0 | H22: 0 | I22: 0 | J22: 904 | K22: 7 | N22: 904 | O22: =LARGE((E22,G22,I22,K22,M22),1)+LARGE((E22,G22,I22,K22,M22),2)+LARGE((E22,G22,I22,K22,M22),3) -> 7
A23: 20. | B23: Irma Tuppurainen | C23: PUPI | D23: 1053 | E23: 6 | F23: 0 | G23: 0 | H23: 0 | I23: 0 | J23: 0 | K23: 0 | N23: 1053 | O23: =LARGE((E23,G23,I23,K23,M23),1)+LARGE((E23,G23,I23,K23,M23),2)+LARGE((E23,G23,I23,K23,M23),3) -> 6
A24: 21. | B24: Anneli Lohtander | C24: NKM | D24: 0 | E24: 0 | F24: 0 | G24: 0 | H24: 0 | I24: 0 | J24: 730 | K24: 6 | N24: 730 | O24: =LARGE((E24,G24,I24,K24,M24),1)+LARGE((E24,G24,I24,K24,M24),2)+LARGE((E24,G24,I24,K24,M24),3) -> 6
A25: 22. | B25: Salme Jauhiainen | C25: PIPI | D25: 890 | E25: 2 | F25: 0 | G25: 0 | H25: 0 | I25: 0 | J25: 0 | K25: 0 | N25: 890 | O25: =LARGE((E25,G25,I25,K25,M25),1)+LARGE((E25,G25,I25,K25,M25),2)+LARGE((E25,G25,I25,K25,M25),3) -> 2
A26: 23. | B26: Eija Korhonen | C26: Lieksa | D26: 1595 | E26: 0 | F26: 0 | G26: 0 | H26: 0 | I26: 0 | J26: 0 | K26: 0 | N26: 1595 | O26: =LARGE((E26,G26,I26,K26,M26),1)+LARGE((E26,G26,I26,K26,M26),2)+LARGE((E26,G26,I26,K26,M26),3) -> 0
A27: 24. | N27: 0 | O27: 0
A28: 25. | N28: 0 | O28: 0
A29: 26. | N29: 0 | O29: 0
A30: 27. | N30: 0 | O30: 0
A31: 28. | N31: 0 | O31: 0
D32: =SUM(D4:D31) -> 21120 | F32: =SUM(F4:F31) -> 10265 | H32: =SUM(H4:H31) -> 4499 | J32: =SUM(J4:J31) -> 15421 | L32: =SUM(L4:L31) -> 6829 | N32: =SUM(D32:M32) -> 58134

Sheet MIEHET
A1: Itä-Suomen laituripilkkicup 2022
D2: Nilsiä 4.6.2022 | F2: Lieksa 18.6.2022 | H2: Joensuu 19.6.2022 | J2: Nurmes 6.8.2022 | L2: Kuopio 25.9.2022
B3: Sarja Miehet | C3: Seura | D3: Osakilpailu I tulos g | E3: Osakilpailu I pisteet | F3: Osakilpailu II tulos g | G3: Osakilpailu II pisteet | H3: Osakilpailu III tulos g | I3: Osakilpailu III pisteet | J3: Osakilpailu IV tulos g | K3: Osakilpailu IV pisteet | L3: Osakilpailu V tulos g | M3: Osakilpailu V pisteet | N3: Osakilpailut Yhteistulos | O3: Osakilpailut yhteispisteet (3 parasta kisaa)
A4: 1 | B4: Raine Kortet | C4: PKUK | D4: 0 | E4: 0 | F4: 768 | G4: 13 | H4: 754 | I4: 13 | J4: 367 | K4: 15 | L4: 2067 | M4: 15 | N4: =SUM(D4+F4+H4+J4+L4) -> 3956 | O4: =LARGE((E4,G4,I4,K4,M4),1)+LARGE((E4,G4,I4,K4,M4),2)+LARGE((E4,G4,I4,K4,M4),3) -> 43
A5: 2 | B5: Reijo Viertola | C5: LKM | D5: 1928 | E5: 10 | F5: 1779 | G5: 15 | H5: 1548 | I5: 15 | J5: 238 | K5: 9 | L5: 671 | M5: 5 | N5: 6164 | O5: =LARGE((E5,G5,I5,K5,M5),1)+LARGE((E5,G5,I5,K5,M5),2)+LARGE((E5,G5,I5,K5,M5),3) -> 40
A6: 3 | B6: Reino Asikainen | C6: PUPI | D6: 2475 | E6: 12 | F6: 1241 | G6: 14 | H6: 730 | I6: 12 | J6: 290 | K6: 12 | L6: 935 | M6: 7 | N6: 5671 | O6: =LARGE((E6,G6,I6,K6,M6),1)+LARGE((E6,G6,I6,K6,M6),2)+LARGE((E6,G6,I6,K6,M6),3) -> 38
A7: 4 | B7: Esa Kolehmainen | C7: LUK | D7: 1898 | E7: 8 | F7: 469 | G7: 10 | H7: 685 | I7: 10 | J7: 319 | K7: 13 | N7: 3371 | O7: =LARGE((E7,G7,I7,K7,M7),1)+LARGE((E7,G7,I7,K7,M7),2)+LARGE((E7,G7,I7,K7,M7),3) -> 33
A8: 5 | B8: Pertti Myyry | C8: PKUK | D8: 1656 | E8: 5 | F8: 469 | G8: 10 | H8: 728 | I8: 11 | J8: 250 | K8: 11 | N8: 3103 | O8: =LARGE((E8,G8,I8,K8,M8),1)+LARGE((E8,G8,I8,K8,M8),2)+LARGE((E8,G8,I8,K8,M8),3) -> 32
A9: 6 | B9: Otto Huovinen | C9: PKUK | D9: 2529 | E9: 13 | F9: 320 | G9: 5 | H9: 248 | I9: 7 | J9: 233 | K9: 7 | N9: 3330 | O9: =LARGE((E9,G9,I9,K9,M9),1)+LARGE((E9,G9,I9,K9,M9),2)+LARGE((E9,G9,I9,K9,M9),3) -> 27
A10: 7 | B10: Markku Kukkonen | C10: PUPI | D10: 2748 | E10: 14 | F10: 0 | G10: 0 | H10: 0 | I10: 0 | J10: 0 | K10: 0 | L10: 1448 | M10: 12 | N10: 4196 | O10: =LARGE((E10,G10,I10,K10,M10),1)+LARGE((E10,G10,I10,K10,M10),2)+LARGE((E10,G10,I10,K10,M10),3) -> 26
A11: 8 | B11: Heimo Kukkonen | C11: NKM | D11: 1242 | E11: 0 | F11: 172 | G11: 1 | H11: 0 | I11: 0 | J11: 350 | K11: 14 | L11: 771 | M11: 6 | N11: 2535 | O11: =LARGE((E11,G11,I11,K11,M11),1)+LARGE((E11,G11,I11,K11,M11),2)+LARGE((E11,G11,I11,K11,M11),3) -> 21
A12: 9 | B12: Tapio Saastamoinen | C12: NIKA | D12: 1920 | E12: 9 | F12: 0 | G12: 0 | H12: 0 | I12: 0 | J12: 0 | K12: 0 | L12: 1367 | M12: 11 | N12: 3287 | O12: =LARGE((E12,G12,I12,K12,M12),1)+LARGE((E12,G12,I12,K12,M12),2)+LARGE((E12,G12,I12,K12,M12),3) -> 20
A13: 10 | B13: Pentti Kärnä | C13: NKM | D13: 1375 | E13: 0 | F13: 638 | G13: 12 | H13: 0 | I13: 0 | J13: 212 | K13: 6 | N13: 2225 | O13: =LARGE((E13,G13,I13,K13,M13),1)+LARGE((E13,G13,I13,K13,M13),2)+LARGE((E13,G13,I13,K13,M13),3) -> 18
A14: 11 | B14: Pauli Suikka | C14: PUPI | D14: 1399 | E14: 3 | F14: 0 | G14: 0 | H14: 0 | I14: 0 | J14: 0 | K14: 0 | L14: 1537 | M14: 14 | N14: 2936 | O14: =LARGE((E14,G14,I14,K14,M14),1)+LARGE((E14,G14,I14,K14,M14),2)+LARGE((E14,G14,I14,K14,M14),3) -> 17
A15: 12 | B15: Martti Nissinen | C15: PUPI | D15: 2764 | E15: 15 | F15: 0 | G15: 0 | H15: 0 | I15: 0 | J15: 0 | K15: 0 | N15: 2764 | O15: =LARGE((E15,G15,I15,K15,M15),1)+LARGE((E15,G15,I15,K15,M15),2)+LARGE((E15,G15,I15,K15,M15),3) -> 15
A16: 13 | B16: Seppo Muikku | C16: PN | D16: 0 | E16: 0 | F16: 383 | G16: 6 | H16: 669 | I16: 9 | J16: 0 | K16: 0 | N16: 1052 | O16: =LARGE((E16,G16,I16,K16,M16),1)+LARGE((E16,G16,I16,K16,M16),2)+LARGE((E16,G16,I16,K16,M16),3) -> 15
A17: 14 | B17: Pekka Hujanen | C17: PUPI | D17: 1854 | E17: 7 | F17: 0 | G17: 0 | H17: 0 | I17: 0 | J17: 0 | K17: 0 | L17: 944 | M17: 8 | N17: 2798 | O17: =LARGE((E17,G17,I17,K17,M17),1)+LARGE((E17,G17,I17,K17,M17),2)+LARGE((E17,G17,I17,K17,M17),3) -> 15
A18: 15 | B18: Osmo Kinnunen | C18: JO-93 | D18: 1372 | E18: 0 | F18: 0 | G18: 0 | H18: 791 | I18: 14 | J18: 0 | K18: 0 | N18: 2163 | O18: =LARGE((E18,G18,I18,K18,M18),1)+LARGE((E18,G18,I18,K18,M18),2)+LARGE((E18,G18,I18,K18,M18),3) -> 14
A19: 16 | B19: Seppo Hyttinen | C19: PKUK | D19: 1124 | E19: 0 | F19: 469 | G19: 10 | H19: 83 | I19: 4 | J19: 0 | K19: 0 | N19: 1676 | O19: =LARGE((E19,G19,I19,K19,M19),1)+LARGE((E19,G19,I19,K19,M19),2)+LARGE((E19,G19,I19,K19,M19),3) -> 14
A20: 17 | B20: Reijo Härkman | C20: OEK | D20: 432 | E20: 0 | F20: 0 | G20: 0 | H20: 233 | I20: 6 | J20: 235 | K20: 8 | N20: 900 | O20: =LARGE((E20,G20,I20,K20,M20),1)+LARGE((E20,G20,I20,K20,M20),2)+LARGE((E20,G20,I20,K20,M20),3) -> 14
A21: 18 | B21: Esko Suikka | C21: PUPI | L21: 1518 | M21: 13 | N21: 1518 | O21: 13
A22: 19 | B22: Antti Lampinen | C22: PKUK | D22: 1526 | E22: 4 | F22: 410 | G22: 8 | H22: 0 | I22: 0 | J22: 0 | K22: 0 | N22: 1936 | O22: =LARGE((E22,G22,I22,K22,M22),1)+LARGE((E22,G22,I22,K22,M22),2)+LARGE((E22,G22,I22,K22,M22),3) -> 12
A23: 20 | B23: Erkki Hietanen | C23: KIKA | D23: 901 | E23: 0 | F23: 257 | G23: 4 | H23: 303 | I23: 8 | J23: 0 | K23: 0 | N23: 1461 | O23: =LARGE((E23,G23,I23,K23,M23),1)+LARGE((E23,G23,I23,K23,M23),2)+LARGE((E23,G23,I23,K23,M23),3) -> 12
A24: 21 | B24: Veikko Kinnunen | C24: PKUK | D24: 715 | E24: 0 | F24: 399 | G24: 7 | H24: 159 | I24: 5 | J24: 0 | K24: 0 | N24: 1273 | O24: =LARGE((E24,G24,I24,K24,M24),1)+LARGE((E24,G24,I24,K24,M24),2)+LARGE((E24,G24,I24,K24,M24),3) -> 12
A25: 22 | B25: Reijo Kuittinen | C25: NKM | D25: 820 | E25: 0 | F25: 204 | G25: 2 | H25: 0 | I25: 0 | J25: 249 | K25: 10 | N25: 1273 | O25: =LARGE((E25,G25,I25,K25,M25),1)+LARGE((E25,G25,I25,K25,M25),2)+LARGE((E25,G25,I25,K25,M25),3) -> 12
A26: 23 | B26: Kari Lappalainen | C26: PUPI | D26: 1382 | E26: 2 | F26: 0 | G26: 0 | H26: 0 | I26: 0 | J26: 0 | K26: 0 | L26: 1339 | M26: 10 | N26: 2721 | O26: =LARGE((E26,G26,I26,K26,M26),1)+LARGE((E26,G26,I26,K26,M26),2)+LARGE((E26,G26,I26,K26,M26),3) -> 12
A27: 24 | B27: Juhani Tuppurainen | C27: PUPI | D27: 2260 | E27: 11 | F27: 0 | G27: 0 | H27: 0 | I27: 0 | J27: 0 | K27: 0 | N27: 2260 | O27: =LARGE((E27,G27,I27,K27,M27),1)+LARGE((E27,G27,I27,K27,M27),2)+LARGE((E27,G27,I27,K27,M27),3) -> 11
A28: 25 | B28: Sem Karjalainen | C28: PUPI | L28: 980 | M28: 9 | N28: 980 | O28: 9
A29: 26 | B29: Jari Hätinen | C29: KPY-ERÄ | D29: 1796 | E29: 6 | F29: 0 | G29: 0 | H29: 0 | I29: 0 | J29: 0 | K29: 0 | N29: 1796 | O29: =LARGE((E29,G29,I29,K29,M29),1)+LARGE((E29,G29,I29,K29,M29),2)+LARGE((E29,G29,I29,K29,M29),3) -> 6
A30: 27 | B30: Risto Kamula | C30: NIPI | D30: 1049 | E30: 0 | F30: 0 | G30: 0 | H30: 0 | I30: 0 | J30: 107 | K30: 3 | L30: 661 | M30: 3 | N30: 1817 | O30: =LARGE((E30,G30,I30,K30,M30),1)+LARGE((E30,G30,I30,K30,M30),2)+LARGE((E30,G30,I30,K30,M30),3) -> 6
A31: 28 | B31: Erkki Kähkönen | C31: KKM | D31: 0 | E31: 0 | F31: 0 | G31: 0 | H31: 0 | I31: 0 | J31: 181 | K31: 5 | N31: 181 | O31: =LARGE((E31,G31,I31,K31,M31),1)+LARGE((E31,G31,I31,K31,M31),2)+LARGE((E31,G31,I31,K31,M31),3) -> 5
A32: 29 | B32: Timo Ainola | C32: LUK | D32: 1376 | E32: 1 | F32: 244 | G32: 3 | H32: 0 | I32: 0 | J32: 0 | K32: 0 | N32: 1620 | O32: =LARGE((E32,G32,I32,K32,M32),1)+LARGE((E32,G32,I32,K32,M32),2)+LARGE((E32,G32,I32,K32,M32),3) -> 4
A33: 30 | B33: Matti Janhunen | C33: FLF | D33: 0 | E33: 0 | F33: 0 | G33: 0 | H33: 0 | I33: 0 | J33: 111 | K33: 4 | L33: 618 | M33: 0 | N33: 729 | O33: =LARGE((E33,G33,I33,K33,M33),1)+LARGE((E33,G33,I33,K33,M33),2)+LARGE((E33,G33,I33,K33,M33),3) -> 4
A34: 31 | B34: Matti Ruotsalainen | C34: NIPI | D34: 887 | E34: 0 | F34: 0 | G34: 0 | H34: 0 | I34: 0 | J34: 0 | K34: 0 | L34: 662 | M34: 4 | N34: 1549 | O34: =LARGE((E34,G34,I34,K34,M34),1)+LARGE((E34,G34,I34,K34,M34),2)+LARGE((E34,G34,I34,K34,M34),3) -> 4
A35: 32 | B35: Matti Väätäinen | C35: NIPI | D35: 1296 | E35: 0 | F35: 0 | G35: 0 | H35: 0 | I35: 0 | J35: 50 | K35: 2 | N35: 1346 | O35: =LARGE((E35,G35,I35,K35,M35),1)+LARGE((E35,G35,I35,K35,M35),2)+LARGE((E35,G35,I35,K35,M35),3) -> 2
A36: 33 | B36: Hannu Raittila | C36: LKK | L36: 646 | M36: 2 | N36: 646 | O36: 2
A37: 34 | B37: Reino Tuovinen | C37: NIKA | D37: 1167 | E37: 0 | F37: 0 | G37: 0 | H37: 0 | I37: 0 | J37: 0 | K37: 0 | L37: 634 | M37: 1 | N37: 1801 | O37: =LARGE((E37,G37,I37,K37,M37),1)+LARGE((E37,G37,I37,K37,M37),2)+LARGE((E37,G37,I37,K37,M37),3) -> 1
A38: 35 | B38: Urpo Korhonen | C38: Lieksa | D38: 3135 | E38: 0 | F38: 339 | G38: 0 | H38: 0 | I38: 0 | J38: 0 | K38: 0 | N38: 3474 | O38: =LARGE((E38,G38,I38,K38,M38),1)+LARGE((E38,G38,I38,K38,M38),2)+LARGE((E38,G38,I38,K38,M38),3) -> 0
A39: 36 | B39: Voitto Heinonen | C39: NIKA | D39: 928 | E39: 0 | F39: 0 | G39: 0 | H39: 0 | I39: 0 | J39: 0 | K39: 0 | L39: 522 | M39: 0 | N39: 1450 | O39: =LARGE((E39,G39,I39,K39,M39),1)+LARGE((E39,G39,I39,K39,M39),2)+LARGE((E39,G39,I39,K39,M39),3) -> 0
A40: 37 | B40: Paavo Pasanen | C40: NIPI | D40: 508 | E40: 0 | F40: 0 | G40: 0 | H40: 0 | I40: 0 | J40: 0 | K40: 0 | N40: 508 | O40: =LARGE((E40,G40,I40,K40,M40),1)+LARGE((E40,G40,I40,K40,M40),2)+LARGE((E40,G40,I40,K40,M40),3) -> 0
A41: 38 | B41: Lauri Jormalainen | C41: NIPI | D41: 347 | E41: 0 | F41: 0 | G41: 0 | H41: 0 | I41: 0 | J41: 0 | K41: 0 | N41: 347 | O41: =LARGE((E41,G41,I41,K41,M41),1)+LARGE((E41,G41,I41,K41,M41),2)+LARGE((E41,G41,I41,K41,M41),3) -> 0
A42: 39 | B42: Esa Sormunen | C42: LKK | L42: 492 | M42: 0 | N42: 492 | O42: =SUM(E42+G42) -> 0
A43: 40 | B43: Jukka Knuutinen | C43: PUPI | L43: 337 | M43: 0 | N43: 337 | O43: =SUM(E43+G43) -> 0
A44: 41 | N44: =SUM(D44+F44+H44+J44+L44) -> 0 | O44: =SUM(E44+G44) -> 0
A45: 42 | N45: 0 | O45: 0
D47: =SUM(D4:D46) -> 46809 | F47: =SUM(F4:F46) -> 8561 | H47: =SUM(H4:H46) -> 6931 | J47: =SUM(J4:J46) -> 3192 | L47: =SUM(L4:L46) -> 18149 | N47: =SUM(D47:M47) -> 83642

Sheet Taul1
